fUST/lending_fUST_20250920
["ID","MTS","AMOUNT","RATE_DAILY","PERIOD"]
[386437405,1758298244642,-1361.13,0.00022749,2]
[386437407,1758298244652,-480.0,0.00022749,2]
[386437409,1758298244662,-599.3,0.00022749,2]
[386437411,1758298244671,-1468.19,0.00022749,2]
[386437413,1758298244681,-480.0,0.00022752,2]
[386437415,1758298244691,-480.0,0.00022752,2]
[386437416,1758298244700,-495.93,0.00022752,2]
[386437418,1758298244710,-546.66,0.00022752,2]
[386437420,1758298244720,-480.0,0.00022752,2]
[386437422,1758298244729,-480.0,0.00022752,2]
[386437423,1758298244739,-480.0,0.00022752,2]
[386437424,1758298244748,-480.0,0.00022752,2]
[386437425,1758298244758,-292.48646763,0.00022752,2]
[386437426,1758298244768,-535.06,0.00022752,2]
[386437427,1758298244778,-480.0,0.00022752,2]
[386437428,1758298244788,-480.0,0.00022752,2]
[386437429,1758298244798,-480.0,0.00022752,2]
[386437430,1758298244808,-480.0,0.00022752,2]
[386437431,1758298244817,-480.0,0.00022752,2]
[386437432,1758298244827,-480.0,0.00022752,2]
[386437433,1758298244837,-480.0,0.00022752,2]
[386437434,1758298244846,-480.0,0.00022752,2]
[386437435,1758298244856,-480.0,0.00022752,2]
[386437437,1758298244865,-480.0,0.00022752,2]
[386437438,1758298244875,-1070.64,0.00022752,2]
[386437440,1758298244884,-502.6,0.00022752,2]
[386437442,1758298244894,-480.0,0.00022752,2]
[386437444,1758298244904,-1049.83,0.00022752,2]
[386437446,1758298244913,-480.0,0.00022753,2]
[386437448,1758298244923,-1374.77,0.00022753,2]
[386437449,1758298244932,-480.0,0.00022753,2]
[386437452,1758298244942,-2996.7,0.00022753,2]
[386437453,1758298244951,-480.0,0.00022753,2]
[386437456,1758298244961,-480.0,0.00022754,2]
[386437457,1758298244971,-2496.35,0.00022754,2]
[386437459,1758298244981,-977.9,0.00022754,2]
[386437461,1758298244991,-480.0,0.00022754,2]
[386437464,1758298245001,-553.87,0.00022754,2]
[386437466,1758298245010,-480.0,0.00022754,2]
[386437467,1758298245019,-688.05,0.00022757,2]
[386437469,1758298245029,-515.89,0.00022757,2]
[386437471,1758298245039,-480.0,0.00022757,2]
[386437473,1758298245048,-735.66,0.00022757,2]
[386437475,1758298245058,-432.17350459,0.00022757,2]
[386437477,1758298245067,-480.0,0.00022757,2]
[386437479,1758298245078,-480.0,0.00022757,2]
[386437481,1758298245087,-480.0,0.00022757,2]
[386437483,1758298245098,-589.71,0.00022757,2]
[386437486,1758298245110,-480.0,0.00022757,2]
[386437488,1758298245119,-480.0,0.00022757,2]
[386437489,1758298245130,-480.0,0.00022759,2]
[386437492,1758298245142,-480.0,0.00022759,2]
[386437493,1758298245154,-480.0,0.00022759,2]
[386437495,1758298245163,-480.0,0.00022759,2]
[386437497,1758298245173,-480.0,0.00022759,2]
[386437499,1758298245182,-480.0,0.00022759,2]
[386437501,1758298245192,-194.95262826,0.00022759,2]
[386437503,1758298245201,-480.0,0.00022759,2]
[386437505,1758298245211,-480.0,0.00022759,2]
[386437507,1758298245220,-1500.0,0.00022768,2]
[386437509,1758298245229,-762.42,0.00022796,2]
[386437511,1758298245239,-2766.93,0.00022796,2]
[386437513,1758298245248,-151.0,0.000228,7]
[386437515,1758298245258,-2158.0,0.00022891,2]
[386437517,1758298245270,-634.0,0.00022891,2]
[386437519,1758298245279,-410.0,0.00022891,2]
[386437521,1758298245290,-415.167,0.00022891,2]
[386437523,1758298245300,-420.0,0.00022957,2]
[386437525,1758298245311,-14589.44003254,0.00022993,2]
[386437527,1758298245321,-480.0,0.00022995,2]
[386437528,1758298245330,-10799.09,0.00022995,2]
[386437530,1758298245340,-534.23,0.00022995,2]
[386437532,1758298245350,-1347.62,0.00022995,2]
[386437534,1758298245360,-480.0,0.00022995,2]
[386437536,1758298245369,-150.0,0.00023,2]
[386437538,1758298245382,-2000.0,0.00023016,2]
[386437540,1758298245391,-533.26,0.00023022,2]
[386437542,1758298245401,-480.0,0.00023023,2]
[386437544,1758298245411,-646.93,0.00023023,2]
[386437546,1758298245421,-1361.13,0.00023023,2]
[386437548,1758298245433,-480.0,0.00023023,2]
[386437553,1758298245472,-599.3,0.00023023,2]
[386437555,1758298245482,-1468.19,0.00023023,2]
[386437557,1758298245492,-480.0,0.00023026,2]
[386437559,1758298245502,-495.93,0.00023026,2]
[386437561,1758298245512,-546.66,0.00023026,2]
[386437563,1758298245521,-480.0,0.00023026,2]
[386437565,1758298245531,-480.0,0.00023026,2]
[386437567,1758298245541,-319.29020457,0.00023026,2]
[386437569,1758298245551,-480.0,0.00023026,2]
[386437571,1758298245560,-535.06,0.00023026,2]
[386437573,1758298245570,-480.0,0.00023026,2]
[386437575,1758298245579,-295.58602464,0.00023026,2]
[386437577,1758298245589,-480.0,0.00023026,2]
[386437579,1758298245598,-480.0,0.00023026,2]
[386437581,1758298245608,-480.0,0.00023026,2]
[386437583,1758298245618,-480.0,0.00023026,2]
[386437585,1758298245627,-480.0,0.00023026,2]
[386437587,1758298245637,-480.0,0.00023026,2]
[386437589,1758298245647,-480.0,0.00023026,2]
[386437591,1758298245657,-480.0,0.00023026,2]
[386437593,1758298245669,-1070.64,0.00023026,2]
[386437595,1758298245679,-502.6,0.00023026,2]
[386437597,1758298245688,-1049.83,0.00023026,2]
[386437599,1758298245697,-480.0,0.00023027,2]
[386437601,1758298245707,-1374.77,0.00023027,2]
[386437603,1758298245717,-480.0,0.00023027,2]
[386437605,1758298245727,-2996.7,0.00023027,2]
[386437607,1758298245736,-480.0,0.00023027,2]
[386437609,1758298245747,-480.0,0.00023028,2]
[386437611,1758298245756,-2496.35,0.00023028,2]
[386437613,1758298245766,-977.9,0.00023028,2]
[386437615,1758298245776,-480.0,0.00023028,2]
[386437617,1758298245787,-553.87,0.00023028,2]
[386437619,1758298245797,-480.0,0.00023028,2]
[386437621,1758298245807,-688.05,0.00023031,2]
[386437623,1758298245817,-515.89,0.00023031,2]
[386437625,1758298245826,-480.0,0.00023031,2]
[386437627,1758298245836,-735.66,0.00023031,2]
[386437629,1758298245846,-480.0,0.00023031,2]
[386437631,1758298245856,-480.0,0.00023031,2]
[386437633,1758298245866,-480.0,0.00023031,2]
[386437635,1758298245876,-480.0,0.00023031,2]
[386437637,1758298245885,-480.0,0.00023031,2]
[386437639,1758298245895,-480.0,0.00023033,2]
[386437641,1758298245904,-480.0,0.00023033,2]
[386437643,1758298245914,-480.0,0.00023033,2]
[386437645,1758298245924,-480.0,0.00023033,2]
[386437647,1758298245934,-510.88835211,0.00023033,2]
[386437649,1758298245944,-480.0,0.00023033,2]
[386437651,1758298245953,-421.35104753,0.00023033,2]
[386437653,1758298245962,-150.0,0.00023055,2]
[386437656,1758298245972,-1500.0,0.00023068,2]
[386437659,1758298245982,-707.00688827,0.00023068,2]
[386437662,1758298245992,-663.77060527,0.00023068,2]
[386437665,1758298246001,-500.0,0.00023068,2]
[386437667,1758298246011,-1500.0,0.00023068,2]
[386437669,1758298246020,-1500.0,0.00023068,2]
[386437671,1758298246030,-762.42,0.0002307,2]
[386437674,1758298246039,-1680.0,0.0002307,2]
[386437677,1758298246049,-2766.93,0.0002307,2]
[386437680,1758298246058,-150.0,0.00023109,2]
[386437683,1758298246068,-150.0,0.00023137,2]
[386437685,1758298246077,-500.0,0.00023138,2]
[386437688,1758298246087,-500.0,0.00023147,2]
[386437691,1758298246096,-500.0,0.0002318,2]
[386437694,1758298246106,-500.74865934,0.0002318,2]
[386437696,1758298246115,-286.54467478,0.00023217,2]
[386437699,1758298246125,-572.39734075,0.00023269,2]
[386437702,1758298246134,-10799.09,0.00023269,2]
[386437705,1758298246144,-534.23,0.00023269,2]
[386437708,1758298246154,-1347.62,0.00023269,2]
[386437711,1758298246163,-480.0,0.00023269,2]
[386437714,1758298246173,-504.581996,0.00023287,2]
[386437717,1758298246183,-533.26,0.00023296,2]
[386437720,1758298246193,-480.0,0.00023297,2]
[386437723,1758298246203,-646.93,0.00023297,2]
[386437725,1758298246212,-1361.13,0.00023297,2]
[386437728,1758298246221,-480.0,0.00023297,2]
[386437731,1758298246231,-599.3,0.00023297,2]
[386437733,1758298246240,-1468.19,0.00023297,2]
[386437736,1758298246250,-480.0,0.000233,2]
[386437738,1758298246260,-495.93,0.000233,2]
[386437740,1758298246273,-546.66,0.000233,2]
[386437742,1758298246283,-480.0,0.000233,2]
[386437744,1758298246293,-480.0,0.000233,2]
[386437745,1758298246302,-480.0,0.000233,2]
[386437747,1758298246312,-535.06,0.000233,2]
[386437749,1758298246321,-480.0,0.000233,2]
[386437751,1758298246331,-480.0,0.000233,2]
[386437753,1758298246345,-480.0,0.000233,2]
[386437755,1758298246356,-480.0,0.000233,2]
[386437757,1758298246366,-480.0,0.000233,2]
[386437759,1758298246376,-480.0,0.000233,2]
[386437761,1758298246385,-480.0,0.000233,2]
[386437763,1758298246394,-480.0,0.000233,2]
[386437765,1758298246404,-499.51688772,0.000233,2]
[386437767,1758298246413,-1070.64,0.000233,2]
[386437769,1758298246423,-502.6,0.000233,2]
[386437771,1758298246432,-1049.83,0.000233,2]
[386437773,1758298246441,-480.0,0.00023301,2]
[386437775,1758298246451,-1374.77,0.00023301,2]
[386437777,1758298246461,-441.57047349,0.00023301,2]
[386437779,1758298246471,-2996.7,0.00023301,2]
[386437781,1758298246481,-480.0,0.00023301,2]
[386437783,1758298246490,-480.0,0.00023302,2]
[386437785,1758298246499,-2496.35,0.00023302,2]
[386437787,1758298246509,-977.9,0.00023302,2]
[386437789,1758298246518,-480.0,0.00023302,2]
[386437790,1758298246527,-553.87,0.00023302,2]
[386437792,1758298246537,-480.0,0.00023302,2]
[386437794,1758298246547,-151.0,0.00023303,7]
[386437796,1758298246556,-151.0,0.00023303,7]
[386437798,1758298246565,-688.05,0.00023305,2]
[386437800,1758298246575,-515.89,0.00023305,2]
[386437802,1758298246584,-480.0,0.00023305,2]
[386437804,1758298246594,-735.66,0.00023305,2]
[386437806,1758298246604,-480.0,0.00023305,2]
[386437808,1758298246613,-480.0,0.00023305,2]
[386437810,1758298246622,-480.0,0.00023305,2]
[386437812,1758298246632,-203.29361289,0.00023305,2]
[386437814,1758298246642,-480.0,0.00023305,2]
[386437816,1758298246651,-480.0,0.00023307,2]
[386437818,1758298246661,-480.0,0.00023307,2]
[386437820,1758298246670,-480.0,0.00023307,2]
[386437822,1758298246680,-480.0,0.00023307,2]
[386437823,1758298246689,-480.0,0.00023307,2]
[386437826,1758298246699,-160.0,0.00023316,2]
[386437828,1758298246709,-2000.0,0.00023316,2]
[386437829,1758298246718,-762.42,0.00023344,2]
[386437831,1758298246727,-2766.93,0.00023344,2]
[386437833,1758298246736,-578.0,0.00023351,2]
[386437835,1758298246746,-578.0,0.00023456,2]
[386437837,1758298246755,-400.0,0.000235,2]
[386437839,1758298246764,-151.0,0.000235,5]
[386437841,1758298246774,-500.0,0.0002352,2]
[386437843,1758298246783,-500.0,0.0002352,2]
[386437845,1758298246793,-500.0,0.0002352,2]
[386437847,1758298246803,-500.0,0.0002352,2]
[386437849,1758298246812,-500.0,0.0002352,2]
[386437851,1758298246822,-239.33335732,0.0002352,2]
[386437853,1758298246832,-501.9726733,0.0002352,2]
[386437855,1758298246841,-505.8389514,0.0002352,2]
[386437857,1758298246851,-501.47095114,0.0002352,2]
[386437859,1758298246861,-500.0,0.0002352,2]
[386437861,1758298246871,-585.34941517,0.0002352,2]
[386437863,1758298246880,-500.0,0.0002352,2]
[386437865,1758298246889,-500.0,0.0002352,2]
[386437867,1758298246898,-578.0,0.00023539,2]
[386437868,1758298246908,-10799.09,0.00023543,2]
[386437871,1758298246918,-534.23,0.00023543,2]
[386437872,1758298246928,-1347.62,0.00023543,2]
[386437874,1758298246937,-480.0,0.00023543,2]
[386437876,1758298246947,-2500.0,0.00023564,2]
[386437878,1758298246957,-533.26,0.0002357,2]
[386437880,1758298246966,-480.0,0.00023571,2]
[386437882,1758298246976,-646.93,0.00023571,2]
[386437884,1758298246986,-1361.13,0.00023571,2]
[386437886,1758298246995,-480.0,0.00023571,2]
[386437888,1758298247005,-599.3,0.00023571,2]
[386437890,1758298247015,-1468.19,0.00023571,2]
[386437892,1758298247025,-480.0,0.00023574,2]
[386437894,1758298247034,-495.93,0.00023574,2]
[386437896,1758298247045,-546.66,0.00023574,2]
[386437898,1758298247055,-480.0,0.00023574,2]
[386437900,1758298247065,-480.0,0.00023574,2]
[386437902,1758298247074,-480.0,0.00023574,2]
[386437904,1758298247084,-535.06,0.00023574,2]
[386437906,1758298247094,-328.87904553,0.00023574,2]
[386437908,1758298247104,-577.64,0.00023574,2]
[386437910,1758298247113,-480.0,0.00023574,2]
[386437912,1758298247123,-480.0,0.00023574,2]
[386437914,1758298247133,-480.0,0.00023574,2]
[386437916,1758298247143,-480.0,0.00023574,2]
[386437918,1758298247153,-480.0,0.00023574,2]
[386437920,1758298247163,-480.0,0.00023574,2]
[386437922,1758298247172,-1070.64,0.00023574,2]
[386437924,1758298247182,-502.6,0.00023574,2]
[386437926,1758298247191,-1049.83,0.00023574,2]
[386437928,1758298247201,-480.0,0.00023575,2]
[386437930,1758298247211,-1374.77,0.00023575,2]
[386437932,1758298247220,-2996.7,0.00023575,2]
[386437934,1758298247230,-480.0,0.00023575,2]
[386437936,1758298247240,-480.0,0.00023576,2]
[386437938,1758298247252,-2496.35,0.00023576,2]
[386437940,1758298247262,-977.9,0.00023576,2]
[386437942,1758298247275,-480.0,0.00023576,2]
[386437944,1758298247284,-553.87,0.00023576,2]
[386437946,1758298247294,-480.0,0.00023576,2]
[386437948,1758298247304,-151.0,0.00023577,7]
[386437950,1758298247314,-151.0,0.00023577,7]
[386437952,1758298247324,-216.100048,0.00023577,7]
[386437954,1758298247335,-151.0,0.00023577,7]
[386437956,1758298247346,-151.0,0.00023577,7]
[386437958,1758298247356,-688.05,0.00023579,2]
[386437960,1758298247366,-515.89,0.00023579,2]
[386437962,1758298247376,-480.0,0.00023579,2]
[386437964,1758298247386,-735.66,0.00023579,2]
[386437966,1758298247395,-164.47362185,0.00023579,2]
[386437968,1758298247405,-480.0,0.00023579,2]
[386437970,1758298247415,-480.0,0.00023579,2]
[386437972,1758298247426,-480.0,0.00023579,2]
[386437974,1758298247436,-480.0,0.00023581,2]
[386437976,1758298247445,-480.0,0.00023581,2]
[386437978,1758298247455,-480.0,0.00023581,2]
[386437980,1758298247465,-480.0,0.00023581,2]
[386437982,1758298247474,-480.0,0.00023581,2]
[386437984,1758298247484,-2000.0,0.00023616,2]
[386437986,1758298247494,-1500.0,0.00023616,2]
[386437988,1758298247505,-217.09409361,0.00023616,2]
[386437990,1758298247515,-762.42,0.00023618,2]
[386437992,1758298247525,-2766.93,0.00023618,2]
[386437993,1758298247535,-578.0,0.00023636,2]
[386437996,1758298247545,-720.0,0.00023681,20]
[386437997,1758298247555,-1000.0,0.00023685,2]
[386437999,1758298247565,-4897.25,0.000237,7]
[386438001,1758298247576,-10799.09,0.00023817,2]
[386438004,1758298247587,-534.23,0.00023817,2]
[386438006,1758298247598,-1347.62,0.00023817,2]
[386438007,1758298247609,-480.0,0.00023817,2]
[386438010,1758298247620,-700.0,0.00023827,2]
[386438011,1758298247631,-533.26,0.00023844,2]
[386438014,1758298247641,-262.51751972,0.00023845,2]
[386438016,1758298247650,-646.93,0.00023845,2]
[386438017,1758298247660,-1361.13,0.00023845,2]
[386438019,1758298247670,-480.0,0.00023845,2]
[386438021,1758298247680,-599.3,0.00023845,2]
[386438024,1758298247690,-1468.19,0.00023845,2]
[386438025,1758298247699,-14589.44003254,0.00023846,2]
[386438027,1758298247709,-480.0,0.00023848,2]
[386438028,1758298247719,-495.93,0.00023848,2]
[386438029,1758298247728,-546.66,0.00023848,2]
[386438030,1758298247738,-480.0,0.00023848,2]
[386438031,1758298247748,-480.0,0.00023848,2]
[386438032,1758298247758,-152.123849,0.00023848,7]
[386438033,1758298247768,-151.0,0.00023848,7]
[386438034,1758298247778,-151.0,0.00023848,7]
[386438035,1758298247787,-151.0,0.00023848,7]
[386438036,1758298247797,-151.0,0.00023848,7]
[386438037,1758298247807,-151.0,0.00023848,7]
[386438038,1758298247817,-151.0,0.00023848,7]
[386438039,1758298247827,-151.0,0.00023848,7]
[386438040,1758298247837,-151.0,0.00023848,7]
[386438041,1758298247847,-151.0,0.00023848,7]
[386438042,1758298247857,-151.0,0.00023848,7]
[386438043,1758298247867,-151.0,0.00023848,7]
[386438044,1758298247876,-179.435586,0.00023848,7]
[386438045,1758298247886,-151.0,0.00023848,7]
[386438046,1758298247896,-151.0,0.00023848,7]
[386438047,1758298247906,-151.0,0.00023848,7]
[386438048,1758298247915,-151.0,0.00023848,7]
[386438049,1758298247925,-480.0,0.00023848,2]
[386438050,1758298247935,-151.0,0.00023848,7]
[386438051,1758298247946,-151.0,0.00023848,7]
[386438052,1758298247955,-151.0,0.00023848,7]
[386438053,1758298247965,-535.06,0.00023848,2]
[386438054,1758298247975,-480.0,0.00023848,2]
[386438055,1758298247984,-173.503752,0.00023848,2]
[386438056,1758298247993,-480.0,0.00023848,2]
[386438057,1758298248001,-480.0,0.00023848,2]
[386438058,1758298248011,-480.0,0.00023848,2]
[386438059,1758298248020,-615.84913682,0.00023848,2]
[386438060,1758298248030,-1070.64,0.00023848,2]
[386438061,1758298248039,-502.6,0.00023848,2]
[386438062,1758298248048,-1049.83,0.00023848,2]
[386438063,1758298248058,-480.0,0.00023849,2]
[386438065,1758298248068,-1374.77,0.00023849,2]
[386438067,1758298248078,-2996.7,0.00023849,2]
[386438069,1758298248088,-480.0,0.00023849,2]
[386438071,1758298248098,-2496.35,0.0002385,2]
[386438073,1758298248108,-977.9,0.0002385,2]
[386438075,1758298248117,-480.0,0.0002385,2]
[386438077,1758298248127,-553.87,0.0002385,2]
[386438079,1758298248137,-480.0,0.0002385,2]
[386438081,1758298248147,-688.05,0.00023853,2]
[386438083,1758298248156,-515.89,0.00023853,2]
[386438085,1758298248166,-290.11,0.00023853,2]
[386438087,1758298248176,-735.66,0.00023853,2]
[386438089,1758298248186,-480.0,0.00023853,2]
[386438091,1758298248196,-480.0,0.00023853,2]
[386438093,1758298248205,-480.0,0.00023853,2]
[386438095,1758298248215,-480.0,0.00023855,2]
[386438097,1758298248225,-480.0,0.00023855,2]
[386438099,1758298248235,-453.58,0.00023855,5]
[386438101,1758298248246,-480.0,0.00023855,2]
[386438103,1758298248256,-480.0,0.00023855,2]
[386438105,1758298248270,-297.32279122,0.00023855,2]
[386438107,1758298248280,-260.0,0.00023864,2]
[386438109,1758298248290,-2500.0,0.00023864,2]
[386438111,1758298248299,-762.42,0.00023892,2]
[386438113,1758298248310,-2766.93,0.00023892,2]
[386438115,1758298248320,-578.0,0.00023906,2]
[386438117,1758298248329,-150.0,0.00023974,2]
[386438119,1758298248341,-500.0,0.00024068,2]
[386438121,1758298248352,-500.0,0.00024068,2]
[386438123,1758298248362,-10799.09,0.00024091,2]
[386438125,1758298248372,-534.23,0.00024091,2]
[386438127,1758298248382,-1347.62,0.00024091,2]
[386438129,1758298248393,-480.0,0.00024091,2]
[386438131,1758298248402,-3000.0,0.00024112,2]
[386438133,1758298248413,-533.26,0.00024118,2]
[386438136,1758298248424,-646.93,0.00024119,2]
[386438138,1758298248433,-1361.13,0.00024119,2]
[386438140,1758298248443,-480.0,0.00024119,2]
[386438142,1758298248453,-599.3,0.00024119,2]
[386438144,1758298248462,-1468.19,0.00024119,2]
[386438145,1758298248471,-480.0,0.00024122,2]
[386438147,1758298248481,-495.93,0.00024122,2]
[386438149,1758298248490,-546.66,0.00024122,2]
[386438151,1758298248499,-480.0,0.00024122,2]
[386438153,1758298248508,-480.0,0.00024122,2]
[386438155,1758298248518,-480.0,0.00024122,2]
[386438157,1758298248527,-535.06,0.00024122,2]
[386438159,1758298248537,-480.0,0.00024122,2]
[386438161,1758298248547,-480.0,0.00024122,2]
[386438163,1758298248557,-480.0,0.00024122,2]
[386438165,1758298248569,-480.0,0.00024122,2]
[386438167,1758298248579,-1070.64,0.00024122,2]
[386438169,1758298248589,-502.6,0.00024122,2]
[386438171,1758298248599,-1049.83,0.00024122,2]
[386438173,1758298248608,-151.0,0.00024123,7]
[386438175,1758298248618,-151.0,0.00024123,7]
[386438177,1758298248628,-151.0,0.00024123,7]
[386438179,1758298248638,-298.453598,0.00024123,7]
[386438181,1758298248648,-151.0,0.00024123,7]
[386438183,1758298248658,-151.0,0.00024123,7]
[386438185,1758298248668,-151.0,0.00024123,7]
[386438187,1758298248678,-151.0,0.00024123,7]
[386438189,1758298248688,-151.996638,0.00024123,7]
[386438191,1758298248697,-151.0,0.00024123,7]
[386438193,1758298248707,-152.523801,0.00024123,7]
[386438195,1758298248717,-152.590971,0.00024123,7]
[386438197,1758298248727,-151.0,0.00024123,7]
[386438199,1758298248736,-151.0,0.00024123,7]
[386438201,1758298248747,-151.0,0.00024123,7]
[386438203,1758298248758,-480.0,0.00024123,2]
[386438205,1758298248769,-151.0,0.00024123,7]
[386438207,1758298248779,-151.0,0.00024123,7]
[386438209,1758298248789,-1374.77,0.00024123,2]
[386438211,1758298248799,-151.0,0.00024123,7]
[386438213,1758298248809,-217.59815,0.00024123,7]
[386438215,1758298248819,-151.0,0.00024123,7]
[386438217,1758298248829,-219.962288,0.00024123,7]
[386438219,1758298248840,-219.962288,0.00024123,7]
[386438221,1758298248849,-219.962288,0.00024123,7]
[386438223,1758298248859,-219.962288,0.00024123,7]
[386438225,1758298248868,-2996.7,0.00024123,2]
[386438227,1758298248878,-480.0,0.00024123,2]
[386438229,1758298248888,-2496.35,0.00024124,2]
[386438231,1758298248897,-977.9,0.00024124,2]
[386438233,1758298248907,-480.0,0.00024124,2]
[386438235,1758298248918,-553.87,0.00024124,2]
[386438237,1758298248927,-480.0,0.00024124,2]
[386438239,1758298248936,-688.05,0.00024127,2]
[386438241,1758298248946,-515.89,0.00024127,2]
[386438243,1758298248956,-735.66,0.00024127,2]
[386438245,1758298248966,-300.48921238,0.00024127,2]
[386438247,1758298248976,-155.0,0.00024127,2]
[386438249,1758298248986,-480.0,0.00024127,2]
[386438251,1758298248996,-167.44689876,0.00024129,2]
[386438253,1758298249006,-480.0,0.00024129,2]
[386438255,1758298249015,-480.0,0.00024129,2]
[386438257,1758298249025,-480.0,0.00024129,2]
[386438259,1758298249035,-607.06072452,0.00024145,2]
[386438261,1758298249045,-333.59433888,0.00024149,2]
[386438263,1758298249055,-2500.0,0.00024164,2]
[386438265,1758298249065,-762.42,0.00024166,2]
[386438267,1758298249075,-2766.93,0.00024166,2]
[386438269,1758298249085,-151.740171,0.00024225,20]
[386438271,1758298249094,-500.0,0.00024261,2]
[386438273,1758298249103,-800.0,0.00024262,2]
[386438275,1758298249113,-151.0,0.00024278,4]
[386438277,1758298249123,-800.0,0.00024298,2]
[386438279,1758298249132,-500.62736572,0.00024321,2]
[386438281,1758298249142,-10799.09,0.00024365,2]
[386438283,1758298249152,-534.23,0.00024365,2]
[386438285,1758298249162,-1347.62,0.00024365,2]
[386438287,1758298249172,-480.0,0.00024365,2]
[386438289,1758298249183,-533.26,0.00024392,2]
[386438291,1758298249194,-646.93,0.00024393,2]
[386438306,1758298249331,-1361.13,0.00024393,2]
[386438308,1758298249342,-480.0,0.00024393,2]
[386438310,1758298249353,-599.3,0.00024393,2]
[386438312,1758298249362,-1468.19,0.00024393,2]
[386438314,1758298249372,-480.0,0.00024396,2]
[386438316,1758298249382,-495.93,0.00024396,2]
[386438318,1758298249391,-546.66,0.00024396,2]
[386438320,1758298249401,-425.12,0.00024396,2]
[386438322,1758298249411,-480.0,0.00024396,2]
[386438324,1758298249421,-480.0,0.00024396,2]
[386438326,1758298249431,-535.06,0.00024396,2]
[386438328,1758298249440,-480.0,0.00024396,2]
[386438330,1758298249450,-480.0,0.00024396,2]
[386438332,1758298249460,-480.0,0.00024396,2]
[386438334,1758298249470,-480.0,0.00024396,2]
[386438336,1758298249479,-1070.64,0.00024396,2]
[386438338,1758298249488,-502.6,0.00024396,2]
[386438340,1758298249498,-1049.83,0.00024396,2]
[386438342,1758298249508,-583.23,0.00024397,2]
[386438344,1758298249517,-1374.77,0.00024397,2]
[386438346,1758298249526,-2996.7,0.00024397,2]
[386438348,1758298249535,-480.0,0.00024397,2]
[386438350,1758298249544,-2496.35,0.00024398,2]
[386438352,1758298249553,-977.9,0.00024398,2]
[386438354,1758298249564,-480.0,0.00024398,2]
[386438356,1758298249574,-553.87,0.00024398,2]
[386438358,1758298249583,-480.0,0.00024398,2]
[386438360,1758298249592,-688.05,0.00024401,2]
[386438361,1758298249602,-515.89,0.00024401,2]
[386438363,1758298249611,-735.66,0.00024401,2]
[386438365,1758298249621,-480.0,0.00024401,2]
[386438367,1758298249632,-480.0,0.00024403,2]
[386438369,1758298249641,-361.0,0.00024403,2]
[386438371,1758298249650,-480.0,0.00024403,2]
[386438373,1758298249660,-360.0,0.00024412,2]
[386438375,1758298249669,-3000.0,0.00024412,2]
[386438377,1758298249680,-578.0,0.00024434,2]
[386438379,1758298249690,-455.30035731,0.0002444,2]
[386438381,1758298249700,-1821.20142923,0.0002444,2]
[386438383,1758298249709,-4097.70321578,0.0002444,2]